bitfinex-derivatives/quotes_ETHF0:USTF0_20250904
["timestamp","ask_amount","ask_price","bid_price","bid_amount"]
[1756973073041,0.5021,4384.2,4384.1,0.2198]
[1756973073437,0.5021,4384.2,4384.1,1.85195997]
[1756973073634,0.7002,4384.2,4384.1,1.85195997]
[1756973073834,0.7002,4384.2,4384.1,0.2198]
[1756973074034,0.7002,4384.2,4384.1,1.85195997]
[1756973076624,0.7002,4384.2,4383.6,3.5095]
[1756973076625,0.114,4384.0,4383.6,3.2078]
[1756973076830,0.8142,4383.5,4383.4,0.1099]
[1756973077029,0.8142,4383.5,4383.4,4.94985997]
[1756973078432,0.8142,4383.5,4383.4,5.05975997]
[1756973079132,0.347,4384.0,4383.4,5.05975997]
[1756973079133,0.114,4384.5,4384.0,0.2885]
[1756973079333,0.4153,4384.5,4384.4,1.85195997]
[1756973079530,0.4153,4384.5,4384.4,1.92065997]
[1756973080131,0.4153,4384.5,4384.4,0.2885]
[1756973080437,0.4153,4384.5,4384.4,1.92065997]
[1756973082338,0.4153,4384.5,4384.2,3.2078]
[1756973082339,0.5199,4384.5,4384.2,3.2078]
[1756973082531,0.114,4384.5,4384.4,1.63215997]
[1756973082735,0.8163,4384.5,4384.4,1.63215997]
[1756973083235,0.5219,4384.5,4384.1,3.2078]
[1756973083438,0.2944,4384.1,4383.9,1.63215997]
[1756973083738,0.617,4384.0,4383.9,1.85395997]
[1756973084831,0.617,4384.0,4383.9,0.2218]
[1756973085033,8.78667156,4385.0,4383.9,0.2218]
[1756973085034,0.1198,4385.0,4384.9,0.1109]
[1756973085229,0.5277,4385.0,4384.7,4.83995997]
[1756973085428,0.4079,4384.8,4384.7,4.95085997]
[1756973085632,0.7023,4384.8,4384.7,5.06175997]
[1756973086030,0.4972,4384.8,4384.7,5.06175997]
[1756973086438,0.4972,4384.8,4384.7,3.4296]
[1756973086639,0.4972,4384.8,4384.7,5.06175997]
[1756973088933,0.7023,4384.8,4384.7,5.06175997]
[1756973090537,0.7023,4384.8,4384.7,3.2078]
[1756973090840,0.7023,4384.8,4384.7,3.3187]
[1756973092042,0.03970801,4385.3,4384.7,5.06175997]
[1756973092335,0.234,4386.4,4385.7,0.0948]
[1756973092529,0.4142,4386.0,4385.9,1.75655997]
[1756973092732,0.8221,4386.0,4385.9,0.0474]
[1756973092940,0.8221,4386.0,4385.9,1.67955997]
[1756973093140,0.8221,4386.0,4385.2,3.2078]
[1756973093332,0.5277,4386.0,4385.9,1.67955997]
[1756973093530,0.5277,4386.0,4385.9,1.63215997]
[1756973093735,0.5277,4386.0,4385.6,1.63215997]
[1756973093930,0.1198,4385.0,4384.9,1.67955997]
[1756973094135,0.8221,4385.0,4384.9,0.0948]
[1756973094333,0.8221,4385.0,4384.9,1.72695997]
[1756973097047,0.617,4385.0,4384.9,0.0948]
[1756973097238,0.617,4385.0,4384.9,1.72695997]
[1756973097438,0.4142,4385.0,4384.9,1.72695997]
[1756973097745,0.4142,4385.0,4384.9,1.75655997]
[1756973099246,0.1198,4385.5,4384.9,0.0948]
[1756973099447,0.617,4385.5,4385.4,1.72695997]
[1756973099949,0.8221,4385.5,4385.4,1.72695997]
[1756973100140,0.8221,4385.5,4385.3,1.63215997]
[1756973100337,0.2944,4385.4,4385.3,1.63215997]
[1756973100544,0.7023,4385.4,4385.3,1.63215997]
[1756973101450,0.7023,4385.4,4385.3,0.0474]
[1756973101643,0.7023,4385.4,4385.3,1.67955997]
[1756973103049,0.7023,4385.4,4385.3,1.72695997]
[1756973104355,0.7023,4385.4,4385.3,0.0474]
[1756973104653,0.7023,4385.4,4385.3,1.67955997]
[1756973105148,0.7023,4385.4,4385.3,1.72695997]
[1756973106449,0.4079,4384.8,4384.7,0.0948]
[1756973106654,0.8221,4384.5,4384.4,0.0474]
[1756973106852,0.8221,4384.5,4384.4,0.0948]
[1756973108854,0.233,4384.9,4384.2,1.63215997]
[1756973109055,1.86515997,4384.9,4384.2,1.63215997]
[1756973110764,1.63215997,4384.6,4384.0,3.2078]
[1756973110959,1.63215997,4384.3,4383.6,1.63215997]
[1756973111553,0.233,4384.4,4383.9,1.63215997]
[1756973111757,0.233,4384.4,4383.5,3.2078]
[1756973111954,0.233,4384.4,4383.9,1.63215997]
[1756973112158,1.63215997,4384.0,4383.5,3.2078]
[1756973112665,0.233,4383.9,4383.5,3.2078]
[1756973113264,0.0797,4383.8,4383.5,3.2078]
[1756973114364,0.0797,4383.8,4383.5,4.83995997]
[1756973121277,0.0501,4383.8,4383.6,0.46112]
[1756973121481,32.862,4385.7,4383.7,5.63215997]
[1756973121482,3.2078,4385.1,4383.7,5.63215997]
[1756973121677,3.2078,4385.1,4384.0,3.2078]
[1756973121876,1.86024997,4385.0,4384.3,1.63215997]
[1756973122076,1.63215997,4385.0,4384.3,1.63215997]
[1756973122478,1.89422997,4385.0,4384.3,1.63215997]
[1756973122678,1.66615997,4385.0,4384.3,1.63215997]
[1756973122978,0.233,4384.9,4384.3,1.63215997]
[1756973124176,0.2079,4384.4,4384.3,1.63215997]
[1756973124481,0.508,4384.4,4384.3,1.63215997]
[1756973127982,0.707,4384.4,4384.3,1.63215997]
[1756973128383,0.4069,4384.1,4384.0,3.2078]
[1756973128577,0.707,4384.1,4384.0,3.2078]
[1756973128780,2.33915997,4384.1,4384.0,3.2078]
[1756973128977,0.1146,4383.5,4383.3,4.83995997]
[1756973129177,0.3001,4383.4,4383.3,4.83995997]
[1756973129976,0.508,4383.4,4383.3,3.2078]
[1756973130482,0.3001,4383.4,4383.3,4.84175997]
[1756973131173,0.3001,4383.4,4383.3,3.2096]
[1756973131482,0.3001,4383.4,4383.3,4.84175997]
[1756973135586,0.3001,4383.4,4383.3,5.20371832]
[1756973135889,0.1146,4384.0,4383.3,5.20371832]
[1756973136091,0.1146,4384.0,4383.9,1.99591832]
[1756973136387,0.1146,4384.0,4383.9,5.20371832]
[1756973136589,0.4147,4384.0,4383.9,5.20371832]
[1756973136984,0.233,4384.4,4383.9,5.20371832]
[1756973137188,0.3001,4384.3,4384.2,1.99591832]
[1756973137391,0.5331,4384.7,4384.2,1.99591832]
[1756973137688,0.5331,4384.7,4384.6,1.99591832]
[1756973137885,0.741,4384.7,4384.6,1.99591832]
[1756973138188,0.5215,4384.0,4383.9,3.2087]
[1756973138387,0.8216,4384.0,4383.9,3.2096]
[1756973138787,0.6226,4384.0,4383.9,3.2096]
[1756973138989,0.4147,4384.0,4383.9,3.2096]
[1756973139180,0.3001,4384.0,4383.9,3.2096]
[1756973139384,0.3001,4384.4,4383.9,3.2096]
[1756973139580,0.3565,4384.5,4384.4,0.0018]
[1756973140189,0.6566,4384.5,4384.4,0.0018]
[1756973140390,0.6226,4384.5,4384.4,0.0018]
[1756973141987,0.8216,4384.5,4384.4,0.0018]
[1756973142591,0.8216,4384.5,4384.4,0.0009]
[1756973142988,0.8216,4384.5,4383.9,3.2078]
[1756973143182,0.6155,4384.0,4383.9,3.2078]
[1756973143794,0.8243,4384.0,4383.9,3.2078]
[1756973146799,0.4935,4383.4,4383.3,3.2078]
[1756973147098,0.2871,4383.4,4383.3,3.2078]
[1756973147293,0.122,4383.5,4383.3,3.2078]
[1756973147493,0.5604,4384.0,4383.3,3.2078]
[1756973147798,0.3284,4384.0,4383.5,1.99411832]
[1756973148093,0.2871,4383.9,4383.5,1.99411832]
[1756973148297,0.122,4384.0,4383.5,1.99411832]
[1756973148799,0.2871,4383.9,4383.5,1.99411832]
[1756973149197,0.7023,4383.4,4383.3,3.2078]
[1756973152200,0.4935,4383.4,4383.3,3.2078]
[1756973153897,0.2871,4383.4,4383.3,3.2078]
[1756973155399,0.4935,4383.4,4383.3,3.2078]
[1756973158303,0.2871,4383.4,4383.3,5.20191832]
[1756973159108,3.5362,4384.0,4383.3,5.20191832]
[1756973159314,3.5362,4384.0,4383.6,1.99411832]
[1756973159315,0.2871,4383.8,4383.6,1.99411832]
[1756973159504,3.76432001,4384.0,4383.6,1.99411832]
[1756973159709,0.2064,4383.9,4383.6,1.99411832]
[1756973159912,3.5362,4384.0,4383.6,1.99411832]
[1756973160113,0.2871,4383.8,4383.6,1.99411832]
[1756973160414,0.2064,4383.7,4383.6,1.99411832]
[1756973160612,0.4935,4383.7,4383.6,1.99411832]
[1756973160814,0.122,4383.5,4383.3,3.2078]
[1756973161113,0.4935,4383.4,4383.3,3.2078]
[1756973161314,0.2871,4383.4,4383.3,3.2078]
[1756973163816,0.3211,4383.7,4383.3,3.2078]
[1756973164110,0.3211,4383.7,4383.6,1.99411832]
[1756973164414,0.2871,4383.7,4383.6,1.99411832]
[1756973164615,0.2871,4383.9,4383.6,1.99411832]
[1756973164916,0.2871,4383.9,4383.8,5.20191832]
[1756973165317,0.034,4384.2,4383.8,5.20191832]
[1756973165516,0.3211,4384.2,4384.1,1.99411832]
[1756973165814,0.5275,4384.2,4384.1,1.99411832]
[1756973166010,0.2064,4384.2,4383.8,3.2078]
[1756973166209,0.122,4384.0,4383.8,3.2078]
[1756973166406,0.7023,4383.9,4383.8,3.2078]
[1756973166616,0.4935,4383.9,4383.8,3.2078]
[1756973167216,0.7023,4383.9,4383.2,3.4408]
[1756973167412,0.2871,4383.8,4383.6,1.99411832]
[1756973167614,0.2871,4383.9,4383.6,1.99411832]
[1756973168016,0.122,4384.0,4383.6,1.99411832]
[1756973168322,0.2871,4383.9,4383.6,1.99411832]
[1756973168522,0.4091,4384.0,4383.8,3.2078]
[1756973168721,0.4091,4384.0,4383.9,1.99411832]
[1756973169518,0.034,4384.2,4383.9,1.99411832]
[1756973169713,0.2871,4384.1,4383.9,1.99411832]
[1756973170019,0.034,4384.2,4384.0,0.4601]
[1756973170408,0.2871,4384.8,4384.1,0.2281]
[1756973170613,0.2871,4384.8,4384.7,3.2078]
[1756973170813,0.4935,4384.8,4384.7,3.2078]
[1756973172418,0.4935,4384.8,4384.7,5.20191832]
[1756973172919,0.1486,4385.0,4384.7,5.20191832]
[1756973172920,0.034,4385.0,4384.7,5.20191832]
[1756973173127,0.034,4385.0,4384.7,5.42997832]
[1756973173424,0.034,4385.0,4384.7,5.66297832]
[1756973173726,0.034,4385.0,4384.7,5.43491832]
[1756973176029,0.034,4385.0,4384.9,1.99411832]
[1756973176223,0.2884,4385.5,4384.9,2.22711832]
[1756973176521,0.4117,4385.5,4385.4,3.2078]
[1756973177023,0.7924,4385.5,4385.4,5.20191832]
[1756973177623,0.4117,4385.5,4385.4,5.20191832]
[1756973178526,0.7924,4385.5,4385.4,3.2078]
[1756973180227,0.6012,4385.5,4385.4,3.2078]
[1756973181428,0.4117,4385.5,4385.4,3.2078]
[1756973182527,0.7924,4385.5,4385.4,3.2078]
[1756973183230,0.1895,4384.9,4384.7,0.232]
[1756973183528,0.3807,4384.9,4384.8,3.2078]
[1756973184024,0.6691,4384.9,4384.8,3.2078]
[1756973184428,0.9011,4384.9,4384.8,3.2078]
[1756973185730,0.6691,4384.9,4384.8,3.2078]
[1756973187333,0.4779,4384.9,4384.8,5.20191832]
[1756973187631,0.2884,4384.9,4384.8,3.2078]
[1756973189431,0.1233,4385.0,4384.8,3.2078]
[1756973189734,0.4779,4385.4,4384.8,3.2078]
[1756973189933,0.1233,4385.5,4385.0,1.99411832]
[1756973190132,0.3128,4385.5,4385.0,1.99411832]
[1756973190333,0.1895,4385.4,4385.0,1.99411832]
[1756973190535,0.2884,4385.4,4385.0,1.99411832]
[1756973191327,0.2884,4385.4,4385.3,5.20191832]
[1756973191826,0.6691,4385.4,4385.3,3.2078]
[1756973194841,0.4779,4385.4,4385.3,3.2078]
[1756973195535,0.4779,4385.4,4385.3,4.83907996]
[1756973195935,0.6691,4385.4,4385.3,4.83907996]
[1756973196442,0.3807,4384.9,4384.7,1.63127996]
[1756973196641,0.6691,4384.8,4384.7,0.232]
[1756973196943,0.1233,4385.0,4384.6,3.2078]
[1756973196944,0.6691,4384.7,4384.6,3.2078]
[1756973197541,0.1233,4384.5,4384.2,1.63127996]
[1756973197738,0.1895,4384.3,4384.2,1.63127996]
[1756973197946,0.6691,4384.3,4384.2,1.63127996]
[1756973198442,0.6012,4384.0,4383.9,0.232]
[1756973198638,0.6012,4384.0,4383.9,1.63127996]
[1756973200343,0.2884,4383.9,4383.6,3.2078]
[1756973200556,0.6691,4383.7,4383.6,3.2078]
[1756973202037,0.4779,4383.7,4383.6,4.83907996]
[1756973202432,0.2884,4383.7,4383.6,4.83907996]
[1756973204039,0.2884,4383.7,4383.6,3.2078]
[1756973204647,0.4931,4383.7,4383.6,3.2078]
[1756973204846,0.6824,4383.7,4383.6,3.2078]
[1756973210047,0.7046,4383.2,4383.1,1.0]
[1756973210246,2.33587996,4383.2,4383.1,1.0]
[1756973210546,0.7046,4383.2,4383.1,1.0]
[1756973211742,0.3106,4383.1,4383.0,3.2078]
[1756973211942,0.7046,4383.1,4383.0,3.2078]
[1756973213646,2.33587996,4383.1,4382.9,1.0]
[1756973213851,0.8206,4383.0,4382.9,1.0]
[1756973214147,2.45187996,4383.0,4382.9,1.0]
[1756973214348,2.68387996,4383.0,4382.9,1.0]
[1756973215452,1.0526,4383.0,4382.9,1.0]
[1756973215753,0.8633,4383.0,4382.9,1.0]
[1756973216645,0.6313,4383.0,4382.9,1.0]
[1756973216848,0.8633,4383.0,4382.9,1.0]
[1756973217149,1.0526,4383.0,4382.9,1.0]
[1756973217544,0.8633,4383.0,4382.9,1.0]
[1756973217743,0.6313,4383.0,4382.9,1.0]
[1756973217943,0.8633,4383.0,4382.9,2.63127996]
[1756973218142,0.232,4383.0,4382.9,2.63127996]
[1756973218851,0.5426,4383.0,4382.9,2.63127996]
[1756973220248,0.3106,4383.0,4382.9,2.63127996]
[1756973220449,0.4266,4383.0,4382.9,2.63127996]
[1756973221948,0.8206,4383.0,4382.9,1.0]
[1756973222558,0.4266,4383.0,4382.9,1.0]
[1756973223152,0.3207,4383.5,4382.9,1.0]
[1756973223352,0.3207,4383.5,4383.4,1.63127996]
[1756973223856,0.6313,4383.5,4383.4,1.63127996]
[1756973226361,0.394,4383.1,4383.0,3.2078]
[1756973226657,0.51,4383.0,4382.9,1.0]
[1756973227051,0.8206,4383.0,4382.9,1.0]
[1756973227955,1.0526,4383.0,4382.9,1.0]
[1756973229358,0.6313,4383.0,4382.9,1.0]
[1756973229555,0.4266,4383.0,4382.9,1.0]
[1756973230959,0.6313,4383.0,4382.9,1.0]
[1756973231453,0.8206,4383.0,4382.9,1.0]
[1756973231653,0.3207,4383.5,4382.9,1.0]
[1756973231850,0.4999,4383.3,4383.2,1.63127996]
[1756973232054,0.6204,4383.0,4382.9,2.63127996]
[1756973232563,0.4157,4383.0,4382.9,2.63127996]
[1756973233264,0.4157,4383.0,4382.9,5.83907996]
[1756973235863,0.6071,4383.0,4382.9,5.83907996]
[1756973236563,0.8101,4383.0,4382.9,5.83907996]
[1756973237166,0.8101,4383.0,4382.9,4.2078]
[1756973237368,0.8101,4383.0,4382.9,1.0]
[1756973245271,0.6071,4383.0,4382.9,1.0]
[1756973245782,0.4157,4383.0,4382.9,1.0]
[1756973246668,0.6071,4383.0,4382.9,1.0]
[1756973246870,0.3074,4383.0,4382.8,5.83907996]
[1756973247074,0.2997,4382.9,4382.8,5.83907996]
[1756973248277,0.231,4383.1,4382.8,5.83907996]
[1756973248573,0.3337,4383.2,4382.8,5.83907996]
[1756973248779,0.3337,4383.2,4383.1,1.63127996]
[1756973248977,0.2997,4383.2,4383.1,1.63127996]
[1756973249784,0.2997,4383.4,4383.1,1.63127996]
[1756973250080,0.3337,4383.4,4383.3,4.83907996]
[1756973250879,0.2997,4383.4,4383.3,4.83907996]
[1756973251083,0.4911,4383.4,4383.3,4.83907996]
[1756973252383,0.034,4383.6,4383.3,4.83907996]
[1756973252580,0.3337,4383.6,4383.3,4.83907996]
[1756973253680,0.3337,4383.6,4383.3,5.07007996]
[1756973253887,0.034,4383.6,4383.4,1.63127996]
[1756973254087,0.034,4383.6,4383.3,5.48060996]
[1756973254581,0.034,4383.6,4383.4,1.63127996]
[1756973254781,0.034,4383.6,4383.5,0.231]
[1756973254983,0.2997,4383.9,4383.5,0.231]
[1756973255181,0.2997,4383.9,4383.8,1.63127996]
[1756973255582,0.2997,4383.9,4383.8,1.99359809]
[1756973256883,0.034,4384.1,4383.8,1.99359809]
[1756973257081,0.3337,4384.1,4383.8,5.20139809]
[1756973257482,0.2997,4384.0,4383.8,3.2078]
[1756973257684,0.2997,4383.9,4383.8,5.20139809]
[1756973257984,0.4911,4383.9,4383.8,3.2078]
[1756973261491,0.2997,4383.9,4383.8,3.2078]
[1756973262189,0.034,4384.1,4384.0,0.002]
[1756973262491,0.1233,4384.5,4384.0,0.233]
[1756973262691,0.1233,4384.5,4384.4,1.99559809]
[1756973263292,0.4292,4384.5,4384.4,1.99559809]
[1756973265790,0.3399,4384.7,4384.4,2.22659809]
[1756973266094,0.034,4384.7,4384.4,2.22659809]
[1756973266294,0.3399,4384.7,4384.6,1.99559809]
[1756973266489,0.3059,4384.7,4384.6,1.99559809]
[1756973268595,0.3059,4384.7,4384.6,2.22659809]
[1756973268895,0.5049,4384.7,4384.6,2.22659809]
[1756973270495,0.695,4384.7,4384.6,2.22659809]
[1756973271396,0.5049,4384.7,4384.6,2.22659809]
[1756973274396,0.695,4384.7,4384.6,0.233]
[1756973274799,0.695,4384.7,4384.6,0.002]
[1756973277301,0.034,4384.9,4384.6,0.002]
[1756973277503,0.3399,4384.9,4384.8,1.99559809]
[1756973277801,0.695,4384.9,4384.8,1.99559809]
[1756973278303,0.3059,4384.9,4384.8,0.002]
[1756973278496,0.3059,4384.9,4384.8,5.20339809]
[1756973280703,0.3399,4385.1,4384.8,5.20339809]
[1756973280903,0.3399,4385.1,4385.0,0.002]
[1756973281099,0.3059,4385.4,4385.0,0.002]
[1756973281300,0.3218,4385.5,4385.4,1.99559809]
[1756973281604,0.3218,4385.5,4385.4,5.20339809]
[1756973281803,0.6277,4385.5,4385.4,5.20339809]
[1756973284403,0.4287,4385.5,4385.4,5.20339809]
[1756973284611,0.034,4385.7,4385.5,0.41032]
[1756973284901,0.034,4385.7,4385.6,0.233]
[1756973285102,0.034,4385.7,4385.6,4.233]
[1756973285303,0.3221,4386.5,4386.4,0.002]
[1756973285902,0.429,4386.5,4386.4,0.002]
[1756973286104,0.8181,4386.5,4386.4,0.002]
[1756973287104,0.8181,4386.5,4386.4,1.99559809]
[1756973288210,0.8181,4386.5,4386.4,0.002]
[1756973288510,0.8181,4386.5,4386.4,1.99559809]
[1756973290313,0.628,4386.5,4386.4,1.99559809]
[1756973291111,0.1231,4386.5,4386.4,1.99559809]
[1756973291310,0.429,4386.5,4386.4,1.99559809]
[1756973292410,0.836,4386.5,4386.4,0.232]
[1756973292912,0.034,4386.7,4386.4,4.41024]
[1756973293111,0.034,4386.7,4386.6,1.99359809]
[1756973293307,0.3445,4386.7,4386.6,1.99359809]
[1756973293609,0.1231,4387.5,4386.6,1.99359809]
[1756973293815,0.4336,4387.0,4386.9,5.20139809]
[1756973294110,0.4336,4387.0,4386.9,3.4398]
[1756973294317,0.4336,4387.0,4386.9,5.43339809]
[1756973295316,0.3444,4387.2,4386.9,5.43339809]
[1756973295613,0.0339,4387.2,4386.9,5.43339809]
[1756973295813,0.3105,4387.1,4386.9,5.43339809]
[1756973296114,0.3105,4387.1,4387.0,1.99359809]
[1756973297517,0.7256,4387.1,4387.0,1.99359809]
[1756973297703,0.4151,4387.1,4386.9,3.4398]
[1756973297907,0.4151,4387.1,4387.0,1.99359809]
[1756973298408,0.7256,4387.1,4387.0,1.99359809]
[1756973298711,0.7256,4387.1,4387.0,2.22559809]
[1756973298912,0.3105,4387.1,4387.0,2.22559809]
[1756973299111,0.3105,4387.1,4387.0,1.99359809]
[1756973299314,0.3105,4387.1,4387.0,2.22559809]
[1756973299709,0.5176,4387.1,4387.0,1.99359809]
[1756973300104,0.7256,4387.1,4387.0,2.22559809]
[1756973300313,0.7256,4387.1,4387.0,0.232]
[1756973300515,0.7256,4387.1,4387.0,2.22559809]
[1756973300813,0.3105,4387.1,4387.0,1.99359809]
[1756973301009,0.7256,4387.1,4387.0,1.99359809]
[1756973301213,0.7256,4387.1,4387.0,2.22559809]
[1756973302210,0.5176,4387.1,4387.0,2.22559809]
[1756973303113,0.0339,4387.2,4387.0,2.22559809]
[1756973303916,0.3105,4387.1,4387.0,0.232]
[1756973304115,0.3105,4387.1,4387.0,2.22559809]
[1756973305016,0.5176,4387.1,4387.0,2.22559809]
[1756973305416,0.5176,4387.1,4387.0,1.99359809]
[1756973305719,0.5176,4387.1,4387.0,2.22559809]
[1756973306219,0.7256,4387.1,4387.0,2.22559809]
[1756973306417,0.5176,4387.1,4387.0,2.22559809]
[1756973306618,0.3105,4387.1,4387.0,2.22559809]
[1756973307721,0.3105,4387.1,4387.0,1.99359809]
[1756973308018,0.5176,4387.1,4387.0,2.22559809]
[1756973308315,0.7256,4387.1,4387.0,1.99359809]
[1756973308619,0.4327,4387.0,4386.9,3.2078]
[1756973308810,0.8478,4387.0,4386.9,3.4398]
[1756973310520,0.8478,4387.0,4386.9,3.2078]
[1756973310820,0.8478,4387.0,4386.9,3.4398]
[1756973311323,0.6398,4387.0,4386.9,3.4398]
[1756973311513,0.8478,4387.0,4386.9,3.4398]
[1756973312718,0.8478,4387.0,4386.9,3.2078]
[1756973313220,4.8478,4387.0,4386.9,3.2078]
[1756973314318,0.3444,4387.2,4387.0,0.41018]
[1756973314523,0.3444,4387.2,4387.1,0.232]
[1756973314723,0.3105,4387.2,4387.1,0.232]
[1756973315220,0.1222,4387.0,4386.9,3.2078]
[1756973315424,0.6398,4387.0,4386.9,3.2078]
[1756973315825,0.8478,4387.0,4386.9,5.20139809]
[1756973316117,0.0339,4387.2,4386.9,5.20139809]
[1756973316327,0.4327,4387.0,4386.9,5.43439809]
[1756973316724,0.6398,4387.0,4386.9,5.43439809]
[1756973317127,0.0339,4387.2,4386.9,5.43439809]
[1756973317328,0.4327,4387.0,4386.9,5.43439809]
[1756973317628,0.4327,4387.0,4386.9,5.07053852]
[1756973318426,0.3105,4387.0,4386.9,5.07053852]
[1756973318623,0.8478,4387.0,4386.9,5.07053852]
[1756973318824,0.8478,4387.0,4386.9,3.4408]
[1756973319032,0.8478,4387.0,4386.9,5.07053852]
[1756973319830,0.4327,4387.0,4386.9,5.07053852]
[1756973325232,0.329,4387.2,4387.0,0.41018]
[1756973325533,0.329,4387.2,4387.1,0.233]
[1756973325733,0.2951,4387.2,4387.1,0.233]
[1756973327638,0.4969,4387.2,4387.1,0.233]
[1756973328837,0.4969,4387.3,4387.2,0.41017]
[1756973329136,0.4969,4387.3,4387.2,2.03990852]
[1756973331033,0.4969,4387.3,4387.2,0.41017]
[1756973331338,0.4969,4387.3,4387.2,2.03990852]
[1756973333745,0.4969,4387.3,4387.2,1.62973852]
[1756973333950,0.6981,4387.3,4387.1,0.233]
[1756973334250,0.6148,4387.0,4386.9,3.2078]
[1756973334443,0.413,4387.0,4386.9,3.4408]
[1756973335251,0.413,4387.0,4386.9,5.07053852]
[1756973338054,0.2951,4387.0,4386.9,5.07053852]
[1756973338452,0.2951,4387.3,4387.0,0.41019]
[1756973338653,0.2951,4387.3,4387.2,1.62973852]
[1756973339450,0.2951,4387.3,4387.2,1.86173852]
[1756973340446,0.2951,4387.3,4387.2,3.49147704]
[1756973340647,0.2951,4387.3,4387.2,1.86173852]
[1756973341052,0.0339,4387.4,4387.2,3.49147704]
[1756973341345,0.2951,4387.3,4387.2,3.49147704]
[1756973341754,0.0339,4387.4,4387.2,3.49147704]
[1756973341945,0.329,4387.4,4387.2,3.90163704]
[1756973342348,0.0339,4387.4,4387.2,3.90163704]
[1756973342548,0.329,4387.4,4387.2,3.90163704]
[1756973342841,0.2951,4387.3,4387.2,3.90163704]
[1756973344245,0.2951,4387.3,4387.2,3.49147704]
[1756973344448,0.2951,4387.3,4387.2,1.86173852]
[1756973344654,0.4969,4387.3,4387.2,1.86173852]
[1756973345048,0.6981,4387.3,4387.2,1.62973852]
[1756973345248,0.6981,4387.3,4387.2,1.86173852]
[1756973347053,0.1231,4388.0,4387.2,1.86173852]
[1756973347246,0.1179,4388.5,4387.9,1.62973852]
[1756973347446,0.413,4388.5,4388.4,3.2078]
[1756973347652,0.413,4388.5,4388.4,3.4408]
[1756973348850,0.1179,4395.0,4390.9,3.2078]
[1756973349057,0.403,4393.3,4393.2,1.62973852]
[1756973349246,0.6981,4393.3,4393.2,1.62973852]
[1756973349451,0.3197,4393.0,4392.5,0.25]
[1756973349659,0.816,4393.0,4392.9,4.83753852]
[1756973349955,0.816,4393.0,4392.9,3.2078]
[1756973350148,4.5209,4393.0,4392.4,3.2078]
[1756973350348,0.816,4392.5,4391.9,44.0078]
[1756973350549,0.413,4392.0,4391.9,44.0078]
[1756973350951,0.413,4392.0,4391.9,3.2078]
[1756973351958,0.2951,4392.8,4391.9,7.68649]
[1756973352166,0.4051,4393.0,4392.7,6.87692704]
[1756973352463,0.2872,4393.0,4392.7,6.87692704]
[1756973352961,4.0,4393.0,4392.7,3.2078]
[1756973353163,0.1906,4392.3,4392.2,3.2078]
[1756973353368,0.6796,4392.3,4392.2,4.83753852]
[1756973353566,0.6796,4392.3,4392.2,9.06017258]
[1756973354960,3.2078,4393.8,4392.9,0.1987]
[1756973355269,0.3924,4393.0,4392.9,6.53987258]
[1756973356662,0.3924,4393.0,4392.9,0.6875]
[1756973356960,0.3924,4393.0,4392.8,0.2974]
[1756973357158,0.3924,4393.0,4392.9,0.6875]
[1756973358661,3.2078,4393.8,4393.7,0.6875]
[1756973358662,0.1906,4393.8,4393.7,0.6875]
[1756973358869,0.4082,4394.5,4393.7,0.6875]
[1756973359171,0.6796,4394.4,4394.3,6.34847258]
[1756973359361,0.6796,4394.4,4394.3,6.05107258]
[1756973359562,7.82776,4394.4,4393.5,3.3225]
[1756973359759,3.2078,4394.4,4394.0,0.2974]
[1756973360071,0.3924,4394.1,4393.6,5.85237258]
[1756973360561,0.6796,4394.0,4393.9,0.1987]
[1756973360763,0.6796,4394.0,4393.9,0.4961]
[1756973361867,0.6796,4394.0,4393.9,0.1987]
[1756973362062,0.6796,4394.0,4393.5,9.47227258]
[1756973362063,0.2872,4393.9,4393.6,0.2974]
[1756973362267,0.3924,4393.7,4393.6,0.6875]
[1756973362969,0.6796,4393.7,4393.6,0.6875]
[1756973363267,0.1906,4393.7,4393.6,0.6875]
[1756973363870,0.6796,4393.7,4393.6,0.6875]
[1756973364570,0.6796,4393.7,4393.6,0.1987]
[1756973365767,0.3924,4393.7,4393.3,5.85237258]
[1756973366070,0.6796,4393.6,4393.5,0.4961]
[1756973366672,0.6796,4393.6,4393.5,0.1987]
[1756973366970,0.2872,4393.3,4393.2,0.2974]
[1756973367170,0.6796,4393.3,4393.2,0.4961]
[1756973367376,0.6796,4393.3,4393.2,0.1987]
[1756973368270,0.3924,4393.3,4392.9,3.5052]
[1756973368570,0.6796,4393.0,4392.9,3.7039]
[1756973368762,0.8006,4393.0,4392.9,0.1987]
[1756973369065,0.6796,4392.7,4392.6,0.4961]
[1756973370072,0.6796,4392.7,4392.6,0.1987]
[1756973370673,0.121,4393.0,4392.4,9.06017258]
[1756973370674,0.121,4392.5,4392.4,3.2078]
[1756973370867,0.8006,4392.5,4392.4,3.2078]
[1756973371064,0.489,4392.4,4392.3,0.3901]
[1756973371270,0.9286,4393.0,4392.9,0.1914]
[1756973371567,0.9286,4393.0,4392.5,0.1147]
[1756973371568,1.0496,4393.0,4392.5,0.1147]
[1756973371871,0.6796,4392.9,4392.8,0.1987]
[1756973372669,0.6796,4392.9,4392.8,0.4961]
[1756973372972,0.9296,4392.9,4392.8,0.4961]
[1756973373865,0.9296,4392.9,4392.8,0.1987]
[1756973374472,0.9296,4392.9,4392.8,0.4961]
[1756973374873,0.9296,4392.9,4392.8,0.6875]
[1756973375367,0.6796,4392.9,4392.8,0.6875]
[1756973375573,0.6796,4392.9,4392.8,2.31295633]
[1756973375574,0.9286,4392.9,4392.8,2.31295633]
[1756973376367,0.6796,4392.9,4392.8,2.31295633]
[1756973376569,0.9286,4392.9,4392.8,2.31295633]